[Event "Caplin Hastings Masters 2023-24"]
[Site "Hastings"]
[Date "2024.01.02"]
[Round "6.5"]
[White "Lux, Hugo de Melo"]
[Black "Sulskis, Sarunas"]
[Result "0-1"]
[ECO "B04"]
[WhiteElo "2311"]
[BlackElo "2490"]
[Annotator "TA"]
[PlyCount "88"]
[EventDate "2023.12.18"]
[EventType "swiss"]
[EventCountry "ENG"]
[SourceTitle "playchess.com"]
[Source "ChessBase"]
[SourceQuality "1"]
[TimeControl "40/6000+30:3000+30"]

{[%evp 12,88,45,35,39,37,53,27,29,0,0,0,30,10,36,26,48,0,26,37,25,23,44,33,50,36,65,56,70,74,72,91,94,77,202,195,206,196,237,141,141,134,152,56,56,56,56,56,56,56,167,160,163,104,108,43,50,0,0,0,225,225,225,165,219,71,71,71,71,0,4,-280,-265,-258,-258,-758,-740,-692,-685]} 1. e4 {[%emt 0:05:51][%cal Be2e4,Be4e5][%mdl 32]} Nf6 {[%emt 0:00:14]} 2. e5 {[%emt 0:01:00]} Nd5 {[%emt 0:00:08]} 3. d4 {[%emt 0:00:13]} d6 {[%emt 0:00:07]} 4. Nf3 {[%emt 0:00:03]} g6 {[%emt 0:01:20]} 5. Bc4 {[%emt 0:05:05]} c6 {[%emt 0:03:30]} 6. Nc3 {[%emt 0:04:54]} Bg7 {[%emt 0:08:04]} 7. O-O {[%emt 0:07:24]} Nxc3 {[%emt 0:02:47] B04: Alekhine's Defence: 4 Nf3.} 8. bxc3 {[%emt 0:00:10]} d5 {[%emt 0:00:11]} 9. Bd3 {[%emt 0:00:52]} c5 {[%emt 0:01:02] White has an edge.} 10. Bb5+ {[%emt 0:27:38]} Nc6 {[%emt 0:03:34] [#]} 11. Ba3 $146 {[%emt 0:11:11]} ({Predecessor:} 11. Bf4 Qa5 12. Bxc6+ bxc6 13. Qd2 Bg4 14. Ne1 cxd4 15. f3 dxc3 16. Qd4 Bf5 17. g4 Bc8 18. Be3 Ba6 19. Rf2 {0-1 Struklec,M (1788)-Radic,G (2048) Hum na Sutli op 15th 2023 (3)}) 11... cxd4 {[%emt 0:08:01]} 12. Nxd4 {[%emt 0:01:08]} Bd7 {[%emt 0:01:32]} (12... Qc7 {seems wilder.} 13. Nxc6 bxc6 14. Qxd5 Bb7) 13. Bxc6 {[%emt 0:01:14]} bxc6 {[%emt 0:05:34] Black is weak on the dark squares} 14. Qe2 {[%emt 0:00:36]} (14. Re1 $14 {deserves consideration.}) 14... O-O {[%emt 0:05:53]} (14... Qa5 $5 {[%cal Ra5a3]} 15. Bb4 Qc7 $11) 15. Rab1 {[%emt 0:07:57]} c5 {[%emt 0:13:41] Strongly threatening ...Qa5.} 16. Bxc5 {[%emt 0:02:18]} Rc8 {[%emt 0:01:17]} 17. Nb3 {[%emt 0:03:42]} a6 {[%emt 0:01:18]} 18. Qe3 {[%emt 0:01:52]} Bb5 {[%emt 0:02:48]} 19. Rfe1 {[%emt 0:01:21]} Qd7 {[%emt 0:08:07]} 20. Bd4 {[%emt 0:04:16]} e6 {[%emt 0:03:42]} 21. Nc5 {[%emt 0:00:01]} Qc6 {[%emt 0:00:21]} 22. Rb4 {[%emt 0:01:43]} Rfd8 {[%emt 0:07:41]} (22... Bc4 $16) 23. a4 $18 {[%emt 0:00:15]} Bc4 {[%emt 0:00:14]} 24. Nb7 {[%emt 0:01:11]} Bf8 {[%emt 0:03:36]} 25. Nxd8 {[%emt 0:04:01]} (25. Nd6 $1 $18) 25... Rxd8 $16 {[%emt 0:00:07]} 26. Qg5 {[%emt 0:02:51]} Re8 {[%emt 0:00:40] [#]} 27. h4 {[%emt 0:04:03]} Bxb4 $14 {[%emt 0:05:32]} 28. cxb4 {[%emt 0:00:01]} Qxa4 {[%emt 0:00:07]} 29. Qd2 {[%emt 0:01:16][%cal Oh4h5]} Rb8 {[%emt 0:05:19]} 30. Bc5 {[%emt 0:00:20][%cal Oh4h5] Black must now prevent h5!} Qe8 {[%emt 0:06:27] [#]} (30... h5 $1 $14) 31. h5 $1 $18 {[%emt 0:01:23][%mdl 512]} Qd8 {[%emt 0:00:59] [#]} 32. Qf4 {[%emt 0:02:23] Inhibits Qh4.} (32. Ra1 $1 $18) 32... g5 $16 {[%emt 0:03:35]} 33. Qg3 {[%emt 0:00:04]} (33. Qd2 $16) 33... h6 $14 {[%emt 0:00:11]} 34. Re3 {[%emt 0:00:13]} (34. f4 $14) 34... a5 $11 {[%emt 0:00:34][%cal Ba6a5,Ba5b4,Bb4b3,Bb3b2][%mdl 32]} 35. Bd6 {[%emt 0:01:21]} Rxb4 {[%emt 0:02:27]} (35... Rb7 $11) 36. Bxb4 $18 {[%emt 0:02:25]} axb4 $11 {[%emt 0:00:05][%mdl 4096] Endgame KQR-KQB} 37. Re1 {[%emt 0:00:11]} d4 {[%emt 0:01:14]} (37... Qb6 {was called for.} 38. Rb1 Be2) 38. f4 {[%emt 0:02:59]} (38. Qg4 $18 {is more deadly.}) 38... d3 $16 {[%emt 0:02:20]} 39. cxd3 {[%emt 0:03:48]} Qxd3 {[%emt 0:01:04]} 40. Kh2 {[%emt 0:00:45]} ({White should play} 40. Qxd3 $16 {White wants to mate with Qd8+.} Bxd3 41. Rd1) 40... b3 $11 {[%emt 0:03:01]} 41. Re3 {[%emt 0:35:35][%mdl 8192] [#]} (41. fxg5 $2 Qxg3+ 42. Kxg3 Bd3 43. gxh6 b2 $19) (41. Qg4 $11 {and White is okay.} Qd4 42. Rd1) 41... Qf5 $1 $19 {[%emt 0:05:53]} ({Weaker is} 41... Qd1 42. Qf2 gxf4 43. Qxf4 $11) 42. fxg5 {[%emt 0:00:07]} Qxg5 {[%emt 0:00:31]} 43. Qf2 {[%emt 0:00:16]} (43. Rxb3 Bxb3 44. Qxb3 Qxh5+ 45. Kg1) 43... b2 $1 {[%emt 0:01:32]} ({And not} 43... Qxh5+ 44. Kg1 $11) 44. Re1 {[%emt 0:00:06]} Bd3 {[%emt 0:00:51] Weighted Error Value: White=0.46/Black=0.26 (precise)} ({Less strong is} 44... Qxh5+ 45. Kg1 $11) 0-1

[Event "Caplin Hastings Masters 2023-24"]
[Site "Hastings"]
[Date "2024.01.02"]
[Round "6.6"]
[White "Nielsen, Andre"]
[Black "Edouard, Romain"]
[Result "0-1"]
[ECO "B36"]
[WhiteElo "2239"]
[BlackElo "2527"]
[Annotator "TA"]
[PlyCount "72"]
[EventDate "2023.12.18"]
[EventType "swiss"]
[EventCountry "ENG"]
[SourceTitle "playchess.com"]
[Source "ChessBase"]
[SourceQuality "1"]
[TimeControl "40/6000+30:3000+30"]

{[%evp 10,72,31,35,49,2,16,18,22,-25,2,-10,65,-21,-8,-31,19,20,10,0,0,0,25,-25,-37,-144,-93,-277,-270,-278,-268,-398,-337,-337,-353,-343,-338,-343,-152,-148,-126,-130,-130,-1499,-1498,-29985,-29964,-2356,-2301,-1968,-1968,-1693,-1685,-29989,-29990,-29990,-987,-964,-938,-29978,-29980,-29986,-29987,-29972,-1033]} 1. e4 {[%emt 0:00:16]} c5 {[%emt 0:07:21]} 2. Nf3 {[%emt 0:00:34]} Nc6 {[%emt 0:00:07]} 3. d4 {[%emt 0:00:24]} cxd4 {[%emt 0:00:04]} 4. Nxd4 {[%emt 0:00:13]} g6 {[%emt 0:02:19]} 5. c4 {[%emt 0:01:03]} Nf6 {[%emt 0:00:05]} 6. Nc3 {[%emt 0:01:01]} Nxd4 {[%emt 0:00:23] B36: Sicilian: Maroczy Bind: Gurgenidze System.} 7. e5 {[%emt 0:00:18]} (7. Qxd4 $14 d6 8. c5) 7... Ne6 {[%emt 0:06:02] ...Ng8 would be deadly.} 8. exf6 {[%emt 0:00:42]} exf6 {[%emt 0:00:02] The position is equal.} 9. Be3 {[%emt 0:03:08]} (9. g3 $142) 9... Bg7 {[%emt 0:00:11] [#]} 10. Qd6 $146 {[%emt 0:02:33]} ({Predecessor:} 10. Qd2 O-O 11. g4 a6 12. Nd5 b5 13. Bg2 Bb7 14. Qb4 Re8 15. O-O Bc6 16. c5 Bxd5 17. Bxd5 {1-0 Remolar Gallen,J (2361)-Carbonell Sancho,M (2159) Valencian Community 2020 (7)}) 10... Qe7 {[%emt 0:03:24]} (10... b6 $11) 11. Qd2 {[%emt 0:20:43]} (11. Qxe7+ $14 Kxe7 12. Nd5+ Kd8 13. c5) 11... O-O {[%emt 0:00:40]} 12. g4 {[%emt 0:09:58]} b6 {[%emt 0:01:47]} (12... Nc7 $15) 13. Bg2 $11 {[%emt 0:00:50][%mdl 1024] White has compensation.} Rb8 {[%emt 0:00:02]} 14. O-O-O {[%emt 0:01:41]} (14. Nd5 $5 {[%cal Rd5e7]} Qd8 15. O-O $11) 14... Ba6 {[%emt 0:13:55]} 15. Nd5 {[%emt 0:05:46] Inhibits Qb4.} Qd8 {[%emt 0:00:32]} (15... Qe8 $5 {[%cal Ra6c4]}) 16. b3 {[%emt 0:00:51]} ({Better is} 16. Kb1) 16... b5 {[%emt 0:05:22]} 17. cxb5 {[%emt 0:08:42]} (17. c5 $15) 17... Rxb5 $17 {[%emt 0:08:34] Threatens to win with ...f5.} 18. Kb1 $2 {[%emt 0:29:37]} (18. Bh6 $17) 18... f5 $1 $19 {[%emt 0:20:55]} 19. Bh6 {[%emt 0:05:59] [#]} Bh8 $1 {[%emt 0:10:02][%cal Ob5d5] Strongly threatening ...Rxd5!} 20. Nc3 {[%emt 0:11:56] [#]} (20. g5 {was called for.} Re8 21. Bf1 (21. Nf6+ Bxf6 22. gxf6 Bb7 $17)) (20. Rhe1 Rxd5) 20... Qf6 $1 {[%emt 0:06:25]} 21. Bxf8 {[%emt 0:00:14]} (21. Nxb5 Qa1+ 22. Kc2 Qb2+ 23. Kd3 Bxb5+ 24. Ke3 Qe5+ 25. Kf3 Qe4+ 26. Kg3 Qxg4#) 21... Kxf8 {[%emt 0:01:47]} (21... Qxc3 $2 22. Qxc3 Bxc3 23. Bh6 $18) 22. Rc1 {[%emt 0:03:22] [#]} (22. Nxb5 {leads to mate.} Qa1+ 23. Kc2 Qb2+ 24. Kd3 Bxb5+ 25. Ke3 Qe5+ 26. Kf3 Qe4+ 27. Kg3 Qxg4#) (22. Qd6+ Kg8 23. Rc1 Rc5 $19) 22... Rc5 $1 {[%emt 0:01:22]} 23. gxf5 {[%emt 0:01:08]} Nf4 {[%emt 0:01:49]} (23... Qxf5+ $19 {has better winning chances.} 24. Be4 Qe5) 24. Qxf4 $17 {[%emt 0:00:56] And now Qb8+ would win.} Bd3+ {[%emt 0:00:08] This pair of bishops is nice.} 25. Kb2 {[%emt 0:00:32]} Rxc3 {[%emt 0:00:07] Black is more active.} 26. Qb4+ $2 {[%emt 0:00:27][%mdl 8192]} (26. Ka3 $17 Rxc1 27. Rxc1 Qb2+ {[%mdl 64] Deflection} 28. Ka4 (28. Kb4 $2 Be5 $19) 28... Qxa2+ 29. Kb4 a5+ {[%mdl 64] Deflection} 30. Kc5 Qxb3 31. f6) 26... Rc5+ $19 {[%emt 0:00:46][%mdl 64] Discovered Attack} 27. Ka3 {[%emt 0:00:32]} Qa6+ {[%emt 0:04:38][%mdl 64] Skewer} 28. Qa4 {[%emt 0:00:08]} Ra5 {[%emt 0:00:05]} 29. Rc8+ {[%emt 0:00:17]} Ke7 {[%emt 0:00:09]} 30. Re1+ {[%emt 0:00:37]} Kd6 {[%emt 0:00:11]} 31. Rxh8 {[%emt 0:00:29]} Rxa4+ {[%emt 0:00:02]} 32. bxa4 {[%emt 0:00:09]} Qc4 {[%emt 0:02:29]} (32... Qb6 $142 33. Re4 Bxe4 34. a5 Qc5+ 35. Kb3 Qc2+ 36. Kb4 Qd2+ {[%mdl 64] Deflection} 37. Ka3 Qc3+ 38. Ka4 Bc2+ 39. Kb5 Qd3+ 40. Kb4 Qd4+ 41. Kb5 Bd3#) 33. Rb8 {[%emt 0:00:46]} Qc5+ {[%emt 0:00:12]} 34. Kb2 {[%emt 0:01:00]} Qxf2+ {[%emt 0:02:43] Black mates.} 35. Kc3 {[%emt 0:00:12]} Qc2+ {[%emt 0:00:52]} 36. Kd4 {[%emt 0:00:06]} Bxf5 {[%emt 0:00:07] Ingenious play by Edouard!   Weighted Error Value: White=1.01/Black=0.31} ({Not} 36... Qxa4+ 37. Kxd3 Qxa2 38. Re2 Qa3+ 39. Ke4 $14) (36... Qd2 $142 37. Rd1 Qxd1 38. Rb2 Bxf5+ 39. Ke3 Qd3+ 40. Kf4 Qd4+ 41. Kg3 Qe5+ {[%mdl 64] Skewer} 42. Kf2 Qxb2+ 43. Kg3 Qc3+ 44. Kf2 Qd2+ 45. Kg3 Qe3+ 46. Bf3 Be4 47. Kh4 Bxf3 48. Kg3 Be2+ 49. Kg2 Qf3+ 50. Kg1 Qf1#) 0-1

[Event "Caplin Hastings Masters 2023-24"]
[Site "Hastings"]
[Date "2024.01.02"]
[Round "6.7"]
[White "Laurent-Paoli, Pierre"]
[Black "Vestby-Ellingsen, Mads"]
[Result "1/2-1/2"]
[ECO "B52"]
[WhiteElo "2524"]
[BlackElo "2329"]
[Annotator "TA"]
[PlyCount "91"]
[EventDate "2023.12.18"]
[EventType "swiss"]
[EventCountry "ENG"]
[SourceTitle "playchess.com"]
[Source "ChessBase"]
[SourceQuality "1"]
[TimeControl "40/6000+30:3000+30"]

{[%evp 13,91,10,14,11,19,8,15,8,20,9,14,0,0,0,0,0,0,0,24,-17,-16,-16,-25,-18,-10,-57,-45,-52,-48,-24,-20,-35,-33,-59,-72,-178,-100,-95,-109,-103,-108,-102,-92,-162,-164,-177,-177,-164,-166,-153,-136,-136,-136,-129,-120,-129,-129,-155,-146,-161,-146,-126,0,0,0,0,0,0,0,0,0,0,0,0,0,0,0,0,0,0]} 1. e4 {[%emt 0:07:13]} c5 {[%emt 0:00:24]} 2. Nf3 {[%emt 0:00:24]} d6 {[%emt 0:00:12]} 3. Bb5+ {[%emt 0:00:33]} Bd7 {[%emt 0:01:51]} 4. c4 {[%emt 0:00:15]} Nf6 {[%emt 0:01:25]} 5. Nc3 {[%emt 0:00:51]} g6 {[%emt 0:03:06]} 6. O-O {[%emt 0:03:27]} Bg7 {[%emt 0:00:48]} 7. Bxd7+ {[%emt 0:07:26]} Nbxd7 {[%emt 0:03:59]} 8. d3 {[%emt 0:03:29]} O-O {[%emt 0:00:33]} 9. h3 {[%emt 0:00:24]} Ne5 {[%emt 0:11:20]} 10. Nxe5 {[%emt 0:06:46]} dxe5 {[%emt 0:00:43]} 11. Be3 {[%emt 0:04:50]} Qd6 {[%emt 0:06:10]} 12. Qf3 {[%emt 0:34:36]} e6 {[%emt 0:24:48]} 13. Rfd1 {[%emt 0:01:48]} Nd7 {[%emt 0:02:17]} 14. a3 {[%emt 0:01:37]} b6 {[%emt 0:08:33]} 15. b4 {[%emt 0:04:41]} Qe7 {[%emt 0:01:00]} 16. Qe2 {[%emt 0:05:58]} cxb4 {[%emt 0:04:45]} 17. axb4 {[%emt 0:00:05]} Qxb4 {[%emt 0:01:13]} 18. Nb5 {[%emt 0:00:53]} a5 {[%emt 0:03:45]} 19. Rdb1 {[%emt 0:01:10]} (19. f4 $11) 19... Qe7 $15 {[%emt 0:00:12]} 20. Nc3 {[%emt 0:00:01][%cal Oc3a4]} Rfb8 {[%emt 0:02:48]} 21. Na4 {[%emt 0:02:21]} Qd8 {[%emt 0:00:15]} 22. Rb5 {[%emt 0:02:04]} Bf8 {[%emt 0:00:14]} 23. Rab1 {[%emt 0:03:59][%cal Ra4b6]} Bb4 {[%emt 0:00:14]} 24. f4 {[%emt 0:11:03] [#]} (24. Ra1 $17) 24... exf4 {[%emt 0:07:35]} (24... Nc5 $1 $19 {[%cal Rc5a4]} 25. Nxc5 (25. Bxc5 Bxc5+ 26. Nxc5 bxc5 $17) 25... bxc5 26. fxe5 Rxb5 27. cxb5 Rb8) 25. Bxf4 $17 {[%emt 0:00:01] [#]} e5 $1 {[%emt 0:00:16]} 26. Be3 {[%emt 0:00:15] [#]} Nc5 $1 {[%emt 0:01:31][%mdl 512]} 27. Bxc5 {[%emt 0:00:55]} bxc5 {[%emt 0:00:21]} 28. Rxb8 {[%emt 0:00:29]} (28. Kh1 $17 {was necessary.}) 28... Rxb8 $19 {[%emt 0:00:15]} 29. Kh1 {[%emt 0:00:16]} Qd6 {[%emt 0:02:28]} 30. Rf1 {[%emt 0:01:00]} Rd8 {[%emt 0:05:58]} 31. Rf3 {[%emt 0:00:46]} Qc6 {[%emt 0:02:16]} 32. Qc2 {[%emt 0:00:25] White is weak on the dark squares} f6 {[%emt 0:01:32]} 33. Nb2 {[%emt 0:01:48][%cal Ba4b2,Bb2d1,Bd1e3,Be3d5][%mdl 32]} Kg7 {[%emt 0:01:24]} 34. Nd1 {[%emt 0:01:28]} a4 {[%emt 0:05:19][%cal Ba5a4,Ba4a3][%mdl 32]} 35. Ne3 {[%emt 0:00:05]} a3 {[%emt 0:00:56]} 36. Nd5 {[%emt 0:00:17]} Ra8 {[%emt 0:00:20] Strongly threatening ...a2.} 37. Qa2 {[%emt 0:00:19]} Ra6 {[%emt 0:05:33]} (37... Qa4 $17 {Threatens to win with ...Qd1+.} 38. Rf1 Rf8) 38. Rxf6 $11 {[%emt 0:01:58] The position is equal.} Qxf6 {[%emt 0:00:22]} 39. Nxf6 {[%emt 0:00:02]} Kxf6 {[%emt 0:00:45][%mdl 4096] Endgame KQ-KRB} 40. Kg1 {[%emt 0:01:36]} Rd6 {[%emt 0:02:14]} 41. Qf2+ {[%emt 0:09:09]} Kg7 {[%emt 0:01:19]} 42. Qc2 {[%emt 0:08:18]} Ra6 {[%emt 0:00:19]} 43. Qa2 {[%emt 0:00:02]} Rd6 {[%emt 0:16:00]} 44. Qc2 {[%emt 0:02:55]} Ra6 {[%emt 0:00:15] ( -> ...a2)} 45. Qa2 {[%emt 0:00:03]} Rd6 {[%emt 0:00:27]} 46. Qc2 {[%emt 0:00:16] Black had all chances to win.   Weighted Error Value: White=0.09 (flawless) /Black=0.09 (flawless)} 1/2-1/2

[Event "Caplin Hastings Masters 2023-24"]
[Site "Hastings"]
[Date "2024.01.02"]
[Round "6.8"]
[White "Fischer, Daniel"]
[Black "Mikhalevski, Victor"]
[Result "1/2-1/2"]
[ECO "C70"]
[WhiteElo "2341"]
[BlackElo "2524"]
[Annotator "TA"]
[PlyCount "59"]
[EventDate "2023.12.18"]
[EventType "swiss"]
[EventCountry "ENG"]
[SourceTitle "playchess.com"]
[Source "ChessBase"]
[SourceQuality "1"]
[TimeControl "40/6000+30:3000+30"]

{[%evp 16,59,41,47,48,51,43,42,30,18,18,16,14,16,20,20,21,22,22,25,56,60,50,59,45,25,58,48,36,35,35,35,35,43,43,41,84,85,71,15,16,20,70,70,70,70]} 1. e4 {[%emt 0:00:04]} e5 {[%emt 0:00:10]} 2. Nf3 {[%emt 0:00:05]} Nc6 {[%emt 0:00:06]} 3. Bb5 {[%emt 0:00:04][%cal Bf1b5,Bb5a4,Ba4b3][%mdl 32]} a6 {[%emt 0:00:22]} 4. Ba4 {[%emt 0:00:06]} b5 {[%emt 0:00:21]} 5. Bb3 {[%emt 0:00:05]} Na5 {[%emt 0:00:04]} 6. O-O {[%emt 0:01:20]} d6 {[%emt 0:00:10]} 7. d4 {[%emt 0:00:57]} exd4 {[%emt 0:00:08]} 8. Nxd4 {[%emt 0:00:16][%cal Bf3d4,Bd4b3,Bb3a5][%mdl 32]} Bb7 {[%emt 0:00:15]} 9. Bd2 $1 {[%emt 0:01:07] The main line 9.Bd2 scores better than 9.c4.} (9. Re1 {with more complications.} c5 10. e5 dxe5 11. Qh5) 9... Nxb3 {[%emt 0:00:07] C70: Ruy Lopez: 3...a6 4 Ba4, Norwegian and Delayed Schliemann.} 10. Nxb3 {[%emt 0:00:29]} Nf6 {[%emt 0:01:26][%cal Of8e7]} 11. Na5 {[%emt 0:01:05]} Qc8 {[%emt 0:00:47]} ({Much less strong is} 11... Bxe4 12. Re1 d5 13. f3 $16) 12. Nc3 {[%emt 0:03:44]} Be7 $1 {[%emt 0:01:06][%cal Bf8e7,Be7f6,Bf6b2][%mdl 32]} 13. Qf3 {[%emt 0:00:54]} O-O {[%emt 0:00:33]} 14. Nd5 {[%emt 0:00:41]} Nxd5 {[%emt 0:05:36]} 15. exd5 {[%emt 0:00:06]} Bf6 {[%emt 0:00:03]} 16. c3 {[%emt 0:01:21]} Rb8 {[%emt 0:00:46]} 17. Be3 {[%emt 0:17:33] [#]} b4 $146 {[%emt 0:13:42]} ({Predecessor:} 17... Re8 18. Rad1 Re5 19. Rd3 Rf5 20. Qd1 b4 21. c4 Bxb2 22. Rb3 Bc3 23. a3 c5 {1-0 Riccio,E (2488)-Wosch,A (2246) FICGS W-ch email 2016 (7)}) 18. cxb4 {[%emt 0:09:42]} Ba8 {[%emt 0:02:15]} 19. a3 {[%emt 0:03:25]} Bxb2 {[%emt 0:00:44]} 20. Ra2 {[%emt 0:13:09][%cal Ba1a2,Ba2c2,Bc2c6][%mdl 32]} (20. Rab1 $5 {[%cal Rb1b2]} Be5 21. Rfc1 $11) 20... Bf6 {[%emt 0:00:12]} 21. Rc2 {[%emt 0:01:57]} Rb5 {[%emt 0:05:59]} 22. Nc6 {[%emt 0:02:43]} Bxc6 $1 {[%emt 0:00:14]} 23. Rxc6 {[%emt 0:00:13]} a5 $1 {[%emt 0:02:11]} 24. Bd2 {[%emt 0:08:00]} axb4 {[%emt 0:11:21]} 25. Bxb4 {[%emt 0:01:34]} Qb7 {[%emt 0:03:46]} 26. Rfc1 {[%emt 0:03:20] White is more active.} Bb2 {[%emt 0:13:00]} 27. R1c2 {[%emt 0:16:31]} (27. R1c4 $16) 27... Bxa3 $1 $11 {[%emt 0:15:10]} 28. Rxc7 {[%emt 0:13:10]} Qxc7 {[%emt 0:05:53]} 29. Rxc7 $14 {[%emt 0:00:04]} Bxb4 {[%emt 0:00:03]} 30. g3 {[%emt 0:05:29] Weighted Error Value: White=0.06 (flawless) /Black=0.07 (flawless)} 1/2-1/2

[Event "Caplin Hastings Masters 2023-24"]
[Site "Hastings"]
[Date "2024.01.02"]
[Round "6.9"]
[White "Ghasi, Ameet K"]
[Black "Gallagher, Joseph G."]
[Result "1/2-1/2"]
[ECO "A37"]
[WhiteElo "2509"]
[BlackElo "2427"]
[Annotator "TA"]
[PlyCount "93"]
[EventDate "2023.12.18"]
[EventType "swiss"]
[EventCountry "ENG"]
[SourceTitle "playchess.com"]
[Source "ChessBase"]
[SourceQuality "1"]
[TimeControl "40/6000+30:3000+30"]

{[%evp 20,93,0,0,0,0,6,0,0,0,20,25,14,0,20,19,31,37,40,28,29,41,71,0,0,0,0,-100,-109,-89,-100,-356,-304,-677,-670,-782,-725,-650,-373,-369,-369,-362,-185,-188,8,8,6,0,0,0,0,0,0,0,11,11,12,11,11,11,11,11,11,11,11,12,12,0,12,11,11,11,12,0,0,0]} 1. Nf3 {[%emt 0:01:40]} c5 {[%emt 0:01:48]} 2. g3 {[%emt 0:00:55]} Nc6 {[%emt 0:00:53]} 3. Bg2 {[%emt 0:00:31]} g6 {[%emt 0:00:38]} 4. c4 {[%emt 0:01:09]} Bg7 {[%emt 0:00:23]} 5. Nc3 {[%emt 0:00:31]} d6 {[%emt 0:02:46]} 6. O-O {[%emt 0:00:56]} e5 {[%emt 0:06:04]} 7. a3 {[%emt 0:04:35]} a5 {[%emt 0:04:00]} 8. d3 {[%emt 0:00:55]} Nge7 {[%emt 0:00:56]} 9. Rb1 {[%emt 0:06:45]} O-O {[%emt 0:00:22]} 10. Bd2 {[%emt 0:01:44]} Rb8 {[%emt 0:01:33]} 11. Qa4 {[%emt 0:01:01]} h6 {[%emt 0:06:52]} 12. Nb5 {[%emt 0:12:01]} Be6 {[%emt 0:04:44]} 13. b4 {[%emt 0:01:50]} axb4 {[%emt 0:01:44]} 14. axb4 {[%emt 0:00:50]} Qd7 {[%emt 0:06:43]} 15. bxc5 {[%emt 0:10:22]} dxc5 {[%emt 0:00:26]} 16. Nc3 {[%emt 0:01:29]} b6 {[%emt 0:05:54]} 17. Rb2 {[%emt 0:06:31]} Ra8 {[%emt 0:13:36]} 18. Qc2 {[%emt 0:09:28]} Nb4 {[%emt 0:05:13]} 19. Qc1 {[%emt 0:01:10]} Kh7 {[%emt 0:16:10]} 20. Ne1 {[%emt 0:01:55]} Bh3 {[%emt 0:03:40]} 21. Qb1 {[%emt 0:14:12]} (21. Bxa8 $16 Bxf1 22. Bh1) 21... Bxg2 $11 {[%emt 0:02:17]} (21... Nec6 {is more complex.} 22. Bxh3 Qxh3 23. Nd5 e4) 22. Nxg2 {[%emt 0:00:42]} f5 {[%emt 0:00:57][%cal Bf7f5,Bf5f4][%mdl 32]} 23. Rxb4 {[%emt 0:13:32]} (23. Na2 $11 {remains equal.}) 23... cxb4 $17 {[%emt 0:00:09]} 24. Nb5 {[%emt 0:02:51]} Nc6 {[%emt 0:08:16] ...Ra4 would be deadly.} 25. Ne3 $2 {[%emt 0:02:08][%mdl 8192]} (25. Bxb4 $17 {was the only chance.} Nxb4 26. Qxb4) 25... f4 $19 {[%emt 0:01:54]} 26. Nd5 {[%emt 0:00:09]} (26. Ng2) 26... Qh3 {[%emt 0:00:37] [#] aiming for ...Rf5.} 27. d4 {[%emt 0:04:30]} fxg3 {[%emt 0:08:13]} 28. hxg3 {[%emt 0:00:07]} exd4 {[%emt 0:00:23]} 29. Nf4 {[%emt 0:03:01]} Qf5 {[%emt 0:02:09]} 30. Bxb4 {[%emt 0:00:16]} Qxb1 {[%emt 0:00:57]} (30... Nxb4 $142 31. Qxb4 Be5 32. Qe7+ Rf7) 31. Rxb1 {[%emt 0:00:01]} Rfe8 {[%emt 0:00:43]} ({Better is} 31... Nxb4 $19 32. Rxb4 Ra2) 32. Nc7 $1 $11 {[%emt 0:00:47][%csl LRa8,LRe8] The position is equal.} Ne5 {[%emt 0:02:35][%cal Oe5c4]} 33. c5 {[%emt 0:02:22][%cal Oc5b6]} (33. Rc1 {keeps more tension.} g5 34. Nd3 Rac8 35. Nxe8 Rxe8 36. Kf1) 33... bxc5 {[%emt 0:01:12]} 34. Nxe8 {[%emt 0:00:19]} Rxe8 {[%emt 0:00:45]} 35. Bxc5 {[%emt 0:00:03]} g5 {[%emt 0:01:17]} 36. Nh5 {[%emt 0:01:12][%cal Ob1b7] [#] Rb7! is the strong threat.} d3 {[%emt 0:00:59]} 37. Nxg7 {[%emt 0:04:43]} ({Don't blunder} 37. Rb7 $2 d2 38. Rb1 (38. Rxg7+ $2 {loses.} Kh8 $19) 38... Nd3 $19) 37... Kxg7 {[%emt 0:00:26][%mdl 4096] Endgame KRB-KRN} 38. Bd4 {[%emt 0:00:22] And now f4 would win.} Kf7 {[%emt 0:00:39]} 39. Bxe5 {[%emt 0:00:15]} Rxe5 {[%emt 0:00:24]} 40. exd3 {[%emt 0:00:04] KR-KR} Rd5 {[%emt 0:00:16]} 41. Rd1 {[%emt 0:06:55]} Kf6 {[%emt 0:06:14]} 42. Kf1 {[%emt 0:01:26]} Kf5 {[%emt 0:07:29]} 43. Ke2 {[%emt 0:04:03]} Re5+ {[%emt 0:02:52]} 44. Kd2 {[%emt 0:15:29]} Kg4 {[%emt 0:06:25]} 45. d4 {[%emt 0:01:44]} Re8 {[%emt 0:02:58]} 46. Rh1 {[%emt 0:04:25]} Kf3 {[%emt 0:19:40]} 47. Rxh6 {[%emt 0:10:54] Black had all chances to win.   Weighted Error Value: White=0.33/Black=0.35} 1/2-1/2